Cogmind - Beta 16.1 @@@ ROGUE MODE // 2026.04.21 @ 11:04:21 // Winter2022/Polymind Player: Jimothy Jimone Result: Destroyed by D-53 Grenadier with Mini Grenade Launcher Performance ------------- Evolutions (1) 500 Regions Visited (3) 600 Robots Destroyed (5) 25 Value Destroyed (60) 60 Prototype IDs (0) 0 Alien Tech Used (0) 0 Bonus (1439) 1439 TOTAL SCORE: 2124 Bonus ------- Polymind Skill 1439 Cogmind --------- Core Integrity 0/400 Matter 0/0 Energy 16/100 System Corruption 3% Temperature Cool (0) Movement Core (50) Location -9/Mines Parts ------- > --- POWER (1) -------- (None) > --- PROPULSION (2) --- (None) > --- UTILITY (1) ------ (None) > --- WEAPON (1) ------- (None) > --- INVENTORY (0) ---- (None) Peak State ------------ > --- POWER ------------ Light Ion Engine > --- PROPULSION ------- Wheel Wheel > --- UTILITY ---------- Improved Terrain Scanner Seismic Detector > --- WEAPON ----------- Mining Laser > --- INVENTORY -------- (None) [Rating: 8] Favorites ----------- Power Light Ion Engine Engine Light Ion Engine Propulsion Wheel Wheel Wheel Hover Unit Assembled Hover Unit Flight Unit Flight Unit Utility Improved Terrain Scanner Device Improved Terrain Scanner Storage Medium Matter Pod Processor Terrain Scan Processor Weapon Assembled Maul Ballistic Gun Light Assault Rifle Special Weapon Mining Laser Impact Weapon Assembled Maul Build | -11 -10 -9 -9 ------- Run | Yrd Mat Mat Min Slots Evolved . | . . . . Power . | . . . . Propulsion . | . . . . Utility . | . . . . Weapon . | . . . . Parts Attached . | . . . . Power . | . . . . Engine . | . . . . Core . | . . . . Reactor . | . . . . Propulsion . | . . . . Treads . | . . . . Leg . | . . . . Wheel . | . . . . Hover . | . . . . Flight . | . . . . Utility . | . . . . Device . | . . . . Storage . | . . . . Processor . | . . . . Hackware . | . . . . Protection . | . . . . Artifact . | . . . . Weapon . | . . . . Energy Gun . | . . . . Energy Cannon . | . . . . Ballistic Gun . | . . . . Ballistic Cannon . | . . . . Launcher . | . . . . Special Weapon . | . . . . Impact Weapon . | . . . . Slashing Weapon . | . . . . Piercing Weapon . | . . . . Special Melee Weapon . | . . . . Unidentified Prototypes . | . . . . Parts Lost 6 | . . 1 5 Power 1 | . . . 1 Propulsion 3 | . . . 3 Utility 1 | . . . 1 Weapon 1 | . . 1 . Highest Loss Streak 4 | . . 1 4 To Critical Strikes . | . . . . Average Backups . | . . . . Power . | . . . . Propulsion . | . . . . Utility . | . . . . Weapon . | . . . . Tool/Special . | . . . . Unused Backups . | . . . . Power . | . . . . Propulsion . | . . . . Utility . | . . . . Weapon . | . . . . Tool/Special . | . . . . Average Slot Usage (%) 79 | . 89 92 64 Engine 13 | . 20 16 3 Wheel 15 | . 19 21 7 Hover 5 | . . . 12 Flight 7 | . 15 5 . Device 9 | . 11 21 2 Storage 2 | . 4 . . Processor 2 | . . 10 1 Ballistic Gun 5 | . 11 5 . Special Weapon 3 | . 5 9 . Impact Weapon 15 | . . . 37 Peak Build Rating 8 | 8 8 8 7 Average Rating 4 | 2 5 6 2 On Entrance 4 | . 8 3 7 Avg Prop Armor Cover (%) 14 | . 14 . . Naked Turns 14 | . 1 . 13 Heaviest Build 6 | 6 6 6 5 Greatest Support 20 | 20 20 20 20 Greatest Overweight (x) 1 | . 1 . . Average Overweight (x) . | . . . . Largest Inventory Capacity 1 | . 1 . 1 Average Capacity . | . . . . Most Carried . | . . . . Average Carried . | . . . . Final Capacity . | . . . . Final Carried . | . . . . Class Distribution -------------------- 31% | Troll 22% | Swarmer 15% | Worker 15% | Tunneler 12% | Builder Dominant Class ---------------- Swarmer | -10/Materials Builder | -9/Materials Troll | -9/Mines Resources | -11 -10 -9 -9 ----------- Run | Yrd Mat Mat Min Matter Collected 15 | . 15 . . Remotely . | . . . . Salvage Created 72 | . 34 . 38 Parts 7 | . 7 . . Haulers Intercepted . | . . . . Recyclers Shooed . | . . . . Parts Field Recycled . | . . . . Retrieved Matter . | . . . . Parts Self-Destructed . | . . . . Prevented . | . . . . Parts Restored . | . . . . Kills | -11 -10 -9 -9 ------- Run | Yrd Mat Mat Min Combat Hostiles Destroyed 5 | . 2 . 3 Guns 2 | . 2 . . Classes Destroyed 1 | . 1 . . Swarmer 5 | . 2 . 3 Best Kill Streak 2 | . 2 . 2 Combat Bots Only 2 | . 2 . 2 Max Kills in Single Turn 1 | . 1 . 1 Gunslinging . | . . . . Exploded . | . . . . Melee . | . . . . Uniques/NPCs Destroyed . | . . . . Combat | -11 -10 -9 -9 -------- Run | Yrd Mat Mat Min Hostile Shots Fired 112 | . 30 28 54 Missed 40 | . 9 8 23 Hits 72 | . 21 20 31 Melee 1 | . . . 1 Projectile 71 | . 21 20 30 AOE 10 | . . . 10 Damage Taken 941 | . 203 151 587 Core 484 | . 81 44 359 Absorbed by Shields . | . . . . Regen/Repaired (Parts) 8 | . 8 . . Core Remaining (%) 83 | 100 67 . . Volleys Fired 12 | . 12 . . Largest 1 | . 1 . . Hottest 100 | . 100 . . Shots Fired 12 | . 12 . . Gun 11 | . 11 . . Cannon . | . . . . Launcher . | . . . . Special 1 | . 1 . . Kinetic 11 | . 11 . . Thermal 1 | . 1 . . Explosive . | . . . . Electromagnetic . | . . . . Robot Hit Streak 3 | . 3 . . Robot Miss Streak 2 | . 2 . . Penetration Max . | . . . . Secondary Targets . | . . . . Shots Hit Robots 13 | . 5 . 8 Core Hits 2 | . 2 . . Critical Kills . | . . . . Critical Parts Destroyed . | . . . . Critical Strikes . | . . . . Melee Attacks 23 | . . . 23 Impact 23 | . . . 23 Slashing . | . . . . Piercing . | . . . . Sneak Attacks . | . . . . Combat Hostiles . | . . . . Follow-up Attacks . | . . . . Damage Inflicted 253 | . 46 . 207 Guns 36 | . 36 . . Cannons . | . . . . Explosions . | . . . . Melee 207 | . . . 207 Ramming 10 | . 10 . . Kinetic 36 | . 36 . . Thermal . | . . . . Explosive . | . . . . Electromagnetic . | . . . . Impact 207 | . . . 207 Slashing . | . . . . Piercing . | . . . . Highest Corruption 3 | . 1 . 3 Average Corruption 1 | . 1 . 3 Corruption Purged . | . . . . Corruption Blocked . | . . . . Effects 2 | . 2 . . Matter Fused 1 | . 1 . . Energy Discharges 1 | . 1 . . Overload Shots . | . . . . Overflow Damage 35 | . . . 35 Projectiles . | . . . . Explosions . | . . . . Melee 35 | . . . 35 Knockbacks 2 | . . . 2 Impact 2 | . . . 2 Kinetic . | . . . . Secondary . | . . . . Self-Inflicted Damage 5 | . 5 . . Shots . | . . . . Rammed 2 | . 2 . . Targets Rammed 2 | . 2 . . Kicked . | . . . . Crushed . | . . . . Highest Temperature 80 | . 80 . . Average Temperature 28 | . 28 . . Received Heat Transfer 33 | . 33 . . Siege Activations . | . . . . Martial Activations . | . . . . Shielding Activations . | . . . . Robots Disrupted . | . . . . Combat Hostiles . | . . . . Robots Corrupted 3 | . . . 3 Combat Hostiles 3 | . . . 3 Parts Fried 3 | . . . 3 Impact Corruptions 3 | . . . 3 Robots Melted . | . . . . Combat Hostiles . | . . . . Parts Melted . | . . . . Heat Transferred . | . . . . Parts Sabotaged . | . . . . Parts Stolen . | . . . . Parts Stripped . | . . . . Power Chain Reactions . | . . . . Alert | -11 -10 -9 -9 ------- Run | Yrd Mat Mat Min Maximum Alert Level . | . . . . Low Security (%) 100 | 100 100 100 100 Level 1 . | . . . . Level 2 . | . . . . Level 3 . | . . . . Level 4 . | . . . . Level 5 . | . . . . High Security . | . . . . Max Security . | . . . . Peak Influence 50 | . 50 15 45 Initial 8 | . . 8 . Average 12 | . 14 2 13 Influence Increases 181 | . 81 15 85 Destroy 0b10 Robot/C 100 | . 40 . 60 Destroy Leader 20 | . 10 . 10 Disable Machine 15 | . . . 15 Destroy Structure 1 | . 1 . . Partial Spotted 15 | . . 15 . Lose Combat Pursuer 30 | . 30 . . Influence Decreases 181 | . 61 35 85 Entered New Map 12 | . . 12 . Time Decay 148 | . 61 17 70 Lost Part 14 | . . . 14 Purge Threat 5 | . . 5 . Miscellaneous 2 | . . 1 1 Squads Dispatched 1 | . 1 . . Investigation . | . . . . Extermination . | . . . . Reinforcement 1 | . 1 . . Assault . | . . . . Garrison . | . . . . Intercept . | . . . . Searches Triggered . | . . . . Construction Impeded . | . . . . Haulers Reinforced . | . . . . Active Scanning Responses . | . . . . Cargo Convoy Interrupts . | . . . . Stealth | -11 -10 -9 -9 --------- Run | Yrd Mat Mat Min Distress Signals 2 | . . 2 . Communications Jammed . | . . . . Distress Signals . | . . . . Times Spotted 45 | . 10 7 28 Peak Tracking Total 20 | . 6 7 20 Tactical Retreats 2 | . 1 . 1 Traps | -11 -10 -9 -9 ------- Run | Yrd Mat Mat Min Traps Triggered . | . . . . Indirectly . | . . . . Trap Hack Attempts . | . . . . Triggered . | . . . . Disarmed . | . . . . Reprogrammed . | . . . . Reused . | . . . . Traps Extracted . | . . . . Installed 3 | . . . 3 Triggered . | . . . . Machines | -11 -10 -9 -9 ---------- Run | Yrd Mat Mat Min Machines Disabled 1 | . . . 1 Max in Single Turn 1 | . . . 1 Machines Repaired . | . . . . Machines Dismantled . | . . . . Machines Sabotaged . | . . . . Overloaded Fab Kills . | . . . . Hacking | -11 -10 -9 -9 --------- Run | Yrd Mat Mat Min Machines Accessed 7 | . 4 2 1 Terminals 4 | . 2 2 . Fabricators . | . . . . Repair Stations 1 | . 1 . . Recycling Units 1 | . 1 . . Scanalyzers . | . . . . Garrison Access . | . . . . Total Hacks 11 | . 7 3 1 Successful 8 | . 6 1 1 Failed 3 | . 1 2 . Catastrophic 1 | . . 1 . Database Lockouts . | . . . . Manual 5 | . 2 3 . Terminals 7 | . 4 3 . Fabricators . | . . . . Repair Stations 2 | . 2 . . Recycling Units 1 | . 1 . . Scanalyzers . | . . . . Garrison Access . | . . . . Terminal Hacks 4 | . 2 1 1 Open Door 1 | . . . 1 Alert Level 1 | . 1 . . Unreport Threat 1 | . . 1 . Security Status 1 | . 1 . . Fabricator Hacks . | . . . . Repair Station Hacks 2 | . 2 . . Scan Component 1 | . 1 . . Repair 1 | . 1 . . Recycling Unit Hacks 1 | . 1 . . Report Inventory 1 | . 1 . . Scanalyzer . | . . . . Garrison Access Hacks . | . . . . Unauthorized Hacks 1 | . 1 . . Terminals 1 | . 1 . . Assimilate 1 | . 1 . . Fabricators . | . . . . Repair Stations . | . . . . Recycling Units . | . . . . Scanalyzers . | . . . . Garrison Access . | . . . . Data Cores Recovered . | . . . . Used . | . . . . Hacking Detections 4 | . 2 2 . Full Trace Events 1 | . 1 . . Feedback Events . | . . . . Feedback Blocked . | . . . . Robot Schematics Acquired . | . . . . Robots Built . | . . . . Authchips . | . . . . Time . | . . . . Total Robot Build Rating . | . . . . Part Schematics Acquired . | . . . . Parts Built . | . . . . Authchips . | . . . . Time . | . . . . Total Part Build Rating . | . . . . Part Studies Acquired . | . . . . Parts Repaired 1 | . 1 . . Time 26 | . 26 . . Parts Recycled . | . . . . Recycled Matter . | . . . . Retrieved Matter . | . . . . Retrieved Components . | . . . . Parts Scanalyzed . | . . . . Part Schematics Acquired . | . . . . Parts Damaged . | . . . . Bothacking | -11 -10 -9 -9 ------------ Run | Yrd Mat Mat Min Used RIF Installer . | . . . . Robots Hacked 2 | . 1 1 . Non-combat 1 | . . 1 . Combat 1 | . 1 . . Robot Hacks Applied 2 | . 1 1 . map_walls 1 | . . 1 . find_shortcuts 1 | . 1 . . Relay Couplers Released . | . . . . Fabnet Peak Effective % . | . . . . Robots Rewired . | . . . . Allies Hacked . | . . . . Hacks Repelled . | . . . . Allies | -11 -10 -9 -9 -------- Run | Yrd Mat Mat Min Total Allies 1 | . 1 . . Largest Group 1 | . 1 . . Highest-Rated Group 10 | . 10 . . Highest-Rated Ally 10 | . 10 . . Total Orders 1 | . 1 . . FOLLOW 1 | . 1 . . Ally Attacks . | . . . . Total Damage . | . . . . Kills . | . . . . Allies Corrupted . | . . . . Allies Melted . | . . . . Intel | -11 -10 -9 -9 ------- Run | Yrd Mat Mat Min Active Infowar (turns) 169 | 7 88 70 4 Terrain 169 | 7 88 70 4 Structural 74 | . . 70 4 Seismic 95 | 7 88 . . Robot Analysis Total 5 | 1 2 1 1 Derelict Logs Recovered . | . . . . Drone Launches . | . . . . Drone Recoveries . | . . . . Exploration | -11 -10 -9 -9 ------------- Run | Yrd Mat Mat Min Turns Passed 597 | 19 261 87 230 Spaces Moved 739 | 31 315 129 264 Core 192 | 22 5 . 165 Treads . | . . . . Legs . | . . . . Wheels 309 | 9 170 88 42 Hover 57 | . . . 57 Flight 181 | . 140 41 . Fastest Speed 37 | 50 37 40 50 Average Speed 60 | 58 61 67 56 Slowest Speed 100 | 80 100 80 80 Overloaded Moves . | . . . . Propulsion Burnouts . | . . . . Robots Hopped 3 | . 3 . . Potential Cave-ins . | . . . . Cave-ins Triggered . | . . . . Exploration Rate (%) 29 | 4 39 23 50 Regions Visited 3 Branch Regions 1 Pre-discovered Areas . | . . . . Known Exits Taken . | . . . . Unknown Exits Taken 3 | 1 1 1 . Scrap Searched . | . . . . Spaces Dug 1 | . 1 . . Terrain Destroyed 1 | . 1 . . Melee . | . . . . Projectile 1 | . 1 . . AOE . | . . . . Terrain Rammed . | . . . . Walls Destroyed . | . . . . Machines Disabled . | . . . . Actions | -11 -10 -9 -9 --------- Run | Yrd Mat Mat Min Total 823 | 31 366 128 298 Wait 48 | . 41 . 7 Move 730 | 30 308 128 264 Hop 3 | . 3 . . Pick Up . | . . . . Fast Attach . | . . . . Attach . | . . . . Detach . | . . . . Swap . | . . . . Drop . | . . . . Fire 12 | . 12 . . Melee 23 | . . . 23 Ram 2 | . 2 . . Kick . | . . . . Crush . | . . . . Escape Stasis . | . . . . Rewire 1 | . . . 1 Trap 3 | . . . 3 Miscellaneous 1 | 1 . . . Route ------- -11/Scrapyard -10/Materials -9/Materials -9/Mines History --------- Turn | Location | Event 4 | -11/Scrapyard | Discovered new exit (range 14) 20 | -11/Scrapyard | Entered Materials 241 | -10/Materials | Repaired Flight Unit 248 | -10/Materials | Discovered new exit (range 3) 281 | -10/Materials | Entered another Materials area 361 | -9/Materials | Discovered new exit (range 9) 368 | -9/Materials | Entered Mines 369 | -9/Mines | Assembled infested the area 372 | -9/Mines | Met a Derelict who couldn't figure out how to use a Trap Extractor 374 | -9/Mines | Assisted by a Guerilla fighting off Assembled 546 | -9/Mines | Found a hidden stash of uninstalled traps 593 | -9/Mines | Core integrity fell below 50% 598 | -9/Mines | Destroyed by D-53 Grenadier with Mini Grenade Launcher Last Messages --------------- Acquired 5 Protomatter. Laser Drill disabled. A stash of uninstalled traps is collected here! Installed EMP Trap. Released control of as-01948. Took control of K-01 Serf. Attempting to rewire as-01948. as-01948 cannot be rewired. as-01948 reactivates. Med. Matter Pod destroyed. System corrupted by crushing effect (+3). Collected debris. The unstable cave ceiling collapses. Wheel destroyed. R-06 Scavenger destroyed. Collected debris. The unstable cave ceiling collapses. Lgt. Ion Engine destroyed. Wheel destroyed. Lost control of K-01 Serf. Map ----- +----------------------------------------------------+ | | | | | ?????????????????????????????????????????????????? | | ?????????????????????????????????????????????????? | | ?????????????????????????????????????????????????? | | ?????????????????????????????????????????????????? | | ?????????????????????????????????????????????????? | | ?????????????????????????????????????????????????? | | ?????????????????????????????????????????????????? | | ?????????????????????????????????????????????????? | | ????????????????????????# ???????????????????????? | | ???????????????????????? ???????????????????????? | | ???????????????????????? ???????????????????????? | | ???????????????????????? ???????????????????????? | | ???????????????????????? ?????????# ???????????? | | ???????????????????????? ???????## ???????????? | | ???????????????????????? $??????## ??????????? | | ???????????????????????? #????#? ??????????? | | ???????????????????????? ##???# ??????????? | | ???????????? ?????????? #??? ??????????? | | ???????????? ?????????# #???? ??????????? | | ??????????? ??##????# #????? ?????##????? | | ???????????# ## #???# #????? ????## ???? | | ???????????# ### #?????? ????# ???? | | ???????????# #??????# ##???? " ???? | | ???????????# @ #####??# ????? ???? | | ???????????# # ##?# #?????? ???? | | ???????????????????# ## ######?? #### | | ???????????????????# # #??# | | ???????????????????# |! #% #### #### % | | ?????????????????### %* % ### !%| | | ?????????????????# d k ####### | | ?????????????????## d u#?????## | | ?????????????????## ##?????#### | | ?????????????????# #????????## | | ????????????????## ##????????## | | ?????????????#### ## ##?????????## | | ????????????## ##??#?????????### | | ????????????# ### ## # #?????????????### | | ?????????#### ###?? # #?????????????## | | ##?####### #??? # ????????????## | | ##?? # # ##???????????### | | ######### ### #??#### ##????????????#### | | #???##### #?#### #?????# #??????#???????### | | #??## ## ##???## ##?????# #??????????#????## | | #### ##???## #?????? ????????????????# | | %% #????## #?????? ??????????????#?? | | ##### ##????# #??????# ????????????????? | | ### ##???# #???????# ????????????????? | | ##?## #???????? ????????????????? | +----------------------------------------------------+ Best States ------------- Heat Dissipation 35 Energy Generation 20 Energy Capacity 100 Matter Stores 100 Matter Capacity 125 Sight Range 16 Terrain Scan Range 16 Terrain Scan Density 85 Evasion (%) 62 Item Schematics ----------------- None Robot Schematics ------------------ None Fabricated ------------ Nothing Repaired ---------- Flight Unit | 60% | -10/Materials Studied --------- None Alien Tech Used ----------------- None Achievements -------------- None Challenges ------------ None Polymind | -11 -10 -9 -9 ---------- Run | Yrd Mat Mat Min Hosts 6 | 1 2 1 2 Combat Hostiles 2 | . 1 . 1 Allies . | . . . . Unique Host Classes 5 | 1 2 1 1 Average Host Suspicion 79 | . 86 56 84 Unsuspicious Activity 45 | 7 20 2 16 Returns to Shadow . | . . . . Fuzzy Dispatches . | . . . . Protomatter Created 79 | . . . 79 Used 42 | 5 11 5 21 Decayed 25 | . . . 25 Highest Spend 16 | 5 6 5 16 Top 5 Hosts by Kills: as-01948 (-9/Mines: 3) S-10 Pest (-10/Materials: 2) Game ------ Seed GuidanceServoScanner Manual? 0 Play Time 00:22:22 Cumulative 25.6 hours Start 2026.04.21 @ 10:35:16 End 2026.04.21 @ 11:04:21 Sessions 1 Manual Loads 0 Difficulty Rogue Special Mode Winter2022/Polymind Game No. 46 Rogue 46 Adventurer 0 Explorer 0 Win Type - Total 0 Types 0/0/0/0/0/0/0/0/0/0 Lore% 28 Gallery% 19 Achievement% 19 Wizard Run 0 Options --------- Layout 1 ASCII 0 Keyboard 1 Movement Arrows Keybinds 0 Fullscreen 0 Font 14/SmallcapsGlow Map View 55x38 Zoom Use 0% Tactical HUD 0 Map Filters NONE Filters NONE Steam 1 RUN: 07f4c82c-1826-4ee7-a175-8c24515b5640